bitfinex/quotes_ETHUSD_20250504
["timestamp","ask_amount","ask_price","bid_price","bid_amount"]
[1746339065750,5.41145429,1848.0,1847.7,0.21690965]
[1746339067750,5.41155964,1847.9,1847.7,0.21690965]
[1746339068533,5.4118411,1847.8,1847.7,0.21690965]
[1746339068741,5.4118411,1847.8,1847.5,4.526]
[1746339069061,5.4118411,1847.8,1847.6,0.21738315]
[1746339069561,6.49400597,1847.9,1847.6,0.21738315]
[1746339069749,5.41184468,1847.8,1847.6,0.21738315]
[1746339070425,5.41202462,1847.8,1847.6,0.21738315]
[1746339070858,5.41166073,1847.9,1847.6,0.21738315]
[1746339071356,5.41147793,1848.0,1847.6,6.39096196]
[1746339071570,6.18021338,1848.1,1847.6,6.39096196]
[1746339071761,5.41111338,1848.1,1847.8,0.7612]
[1746339072261,5.41111338,1848.1,1847.9,0.21570573]
[1746339072631,5.41080966,1848.2,1847.9,0.21570573]
[1746339072838,5.41080966,1848.2,1847.8,6.17303861]
[1746339073044,5.41080966,1848.2,1848.0,0.21517527]
[1746339073243,5.4110247,1848.1,1847.9,0.21570573]
[1746339073445,5.4110247,1848.1,1847.8,0.7612]
[1746339075682,5.41129758,1848.0,1847.8,0.7612]
[1746339076998,5.41148859,1848.0,1847.7,5.3119]
[1746339077206,5.41172086,1847.9,1847.7,5.3119]
[1746339077779,10.82352183,1847.9,1847.7,5.3119]
[1746339077979,5.41172086,1847.9,1847.7,5.3119]
[1746339079202,5.4118411,1847.8,1847.7,5.3119]
[1746339080721,5.4118411,1847.8,1847.5,4.524]
[1746339080895,0.7631,1847.9,1847.4,5.3335]
[1746339081203,5.41238326,1847.7,1847.4,6.38579677]
[1746339081381,5.41253563,1847.6,1847.4,6.38579677]
[1746339082099,5.41271989,1847.5,1847.4,5.3335]
[1746339082288,5.41271989,1847.5,1847.4,4.524]
[1746339084703,5.41271989,1847.5,1847.4,4.72423523]
[1746339085306,5.41271989,1847.5,1847.4,0.20023523]
[1746339085717,5.41301288,1847.4,1847.3,3.61149391]
[1746339088428,5.41301288,1847.4,1847.2,0.8186]
[1746339088622,10.82627514,1847.4,1847.2,0.8186]
[1746339088814,5.41301288,1847.4,1847.2,0.8186]
[1746339089213,10.82627103,1847.4,1847.2,0.8186]
[1746339089427,5.4133059,1847.3,1847.2,0.8186]
[1746339090230,5.41311398,1847.4,1847.2,0.8186]
[1746339090595,10.82640212,1847.4,1847.2,0.8186]
[1746339091192,5.4133059,1847.3,1847.2,0.8186]
[1746339092027,5.41359896,1847.2,1847.1,4.524]
[1746339092995,5.4134959,1847.3,1847.1,4.524]
[1746339094033,5.41359896,1847.2,1847.1,4.524]
[1746339099631,5.41389204,1847.1,1847.0,19.511]
[1746339100822,5.41376618,1847.2,1847.0,19.511]
[1746339101011,10.82700331,1847.3,1847.0,22.6748]
[1746339101212,5.41354244,1847.3,1847.0,22.6748]
[1746339101945,5.41361746,1847.2,1847.0,3.1638]
[1746339102148,5.41361746,1847.2,1847.0,0.7602]
[1746339102830,5.41346736,1847.3,1847.0,0.81433596]
[1746339103143,5.41379176,1847.2,1847.0,0.7602]
[1746339103509,10.82767973,1847.2,1846.9,4.525]
[1746339103839,5.41379176,1847.2,1846.9,5.25205672]
[1746339104046,5.41343722,1847.3,1847.0,0.81433586]
[1746339104211,10.82700346,1847.3,1847.0,0.81433586]
[1746339104407,5.41362744,1847.2,1847.0,0.7602]
[1746339104620,5.41362744,1847.2,1847.0,0.81053253]
[1746339106023,5.41362744,1847.2,1847.0,0.75639667]
[1746339106543,5.41362744,1847.2,1847.0,0.81053253]
[1746339106844,5.41362744,1847.2,1847.0,0.75639667]
[1746339107051,5.41389204,1847.1,1847.0,0.75639667]
[1746339107217,5.41375892,1847.2,1847.0,0.75639667]
[1746339108249,5.41394365,1847.1,1846.9,4.525]
[1746339113750,5.41418516,1847.0,1846.9,4.525]
[1746339114739,5.41418516,1847.0,1846.9,4.69831707]
[1746339115235,6.49699804,1847.0,1846.9,4.69831707]
[1746339116168,7.00366745,1847.0,1846.9,4.69831707]
[1746339120196,7.00366745,1847.0,1846.9,0.17331707]
[1746339120565,5.41493993,1846.8,1846.6,4.8748089]
[1746339120884,5.41464839,1846.9,1846.6,4.8748089]
[1746339121080,0.50666941,1846.8,1846.6,4.8748089]
[1746339121281,5.92150205,1846.8,1846.6,4.8748089]
[1746339121453,0.50666941,1846.7,1846.6,4.8748089]
[1746339122473,0.50666941,1846.7,1846.6,7.12385862]
[1746339122804,0.50666941,1846.7,1846.6,13.32101657]
[1746339123156,0.50666941,1846.7,1846.6,13.73434155]
[1746339123698,5.4140334,1847.1,1846.7,5.41494049]
[1746339124215,0.50585489,1847.0,1846.7,5.41494049]
[1746339124373,5.9202293,1847.0,1846.7,1.91492491]
[1746339124696,0.50585489,1846.9,1846.7,1.91492491]
[1746339124992,0.50585489,1846.8,1846.7,1.91492491]
[1746339125184,0.50585489,1846.8,1846.6,13.73430858]
[1746339125563,0.50585489,1846.8,1846.7,5.41506471]
[1746339126199,0.50585489,1846.8,1846.7,0.7766]
[1746339127776,0.50585489,1846.8,1846.7,6.19166471]
[1746339127976,0.50585489,1846.8,1846.7,0.7766]
[1746339128177,0.50585489,1846.8,1846.7,7.20094246]
[1746339128505,0.50585489,1846.8,1846.7,1.78587775]
[1746339128807,0.50585489,1846.8,1846.7,7.20094246]
[1746339129504,0.50585489,1846.8,1846.7,7.36222206]
[1746339130409,0.50585489,1846.8,1846.7,1.94715735]
[1746339132171,0.50585489,1846.8,1846.7,7.36222206]
[1746339136415,0.50585489,1846.8,1846.7,0.1612796]
[1746339136627,0.50585489,1846.8,1846.6,12.95231713]
[1746339136911,0.50585489,1846.8,1846.7,0.16108202]
[1746339137071,0.50585489,1846.8,1846.6,12.95231713]
[1746339137275,0.50585489,1846.8,1846.7,0.16108202]
[1746339137512,0.50585489,1846.8,1846.6,12.95231713]
[1746339137701,0.50585489,1846.8,1846.7,0.16108202]
[1746339137900,0.50585489,1846.8,1846.6,12.95231713]
[1746339138119,5.41421202,1847.0,1846.7,0.16108202]
[1746339138412,5.41421202,1847.0,1846.8,0.16055087]
[1746339138611,0.50671519,1846.9,1846.6,12.2812412]
[1746339138812,0.50671519,1846.9,1846.7,0.16108202]
[1746339138987,0.50671519,1846.9,1846.6,12.2812412]
[1746339139189,0.50673088,1846.8,1846.7,0.16108202]
[1746339139395,0.50673088,1846.8,1846.6,12.2812412]
[1746339139718,0.50673088,1846.8,1846.7,0.16108202]
[1746339139925,5.41421202,1847.0,1846.6,13.11573484]
[1746339140084,5.41421202,1847.0,1846.7,0.16108202]
[1746339140514,5.41421202,1847.0,1846.6,12.2812412]
[1746339140710,0.50688346,1846.9,1846.8,0.16055087]
[1746339140912,0.50688346,1846.9,1846.7,0.16116672]
[1746339141221,0.50688346,1846.8,1846.6,12.2812412]
[1746339141528,0.50688346,1846.8,1846.6,2.34210767]
[1746339141682,5.41454135,1846.9,1846.7,4.523]
[1746339141883,0.50674089,1846.8,1846.7,4.523]
[1746339142118,6.19615795,1846.6,1846.5,1.0]
[1746339142781,6.70289884,1846.6,1846.5,1.0]
[1746339144107,0.50674089,1846.6,1846.5,1.0]
[1746339144323,0.50674089,1846.6,1846.5,9.24217441]
[1746339144696,0.50674089,1846.6,1846.5,9.39290687]
[1746339145814,0.50674089,1846.6,1846.5,9.34290687]
[1746339146899,5.41405386,1847.1,1846.6,5.41515807]
[1746339147429,0.50584888,1847.0,1846.9,0.8262]
[1746339147715,0.50584888,1847.0,1846.9,6.12186311]
[1746339151425,0.50584888,1847.0,1846.9,11.53634142]
[1746339153131,0.50584888,1847.0,1846.9,6.12186311]
[1746339153425,0.50584888,1847.0,1846.9,13.11431521]
[1746339158606,0.50584888,1847.0,1846.9,11.53634142]
[1746339166942,5.413338,1847.3,1846.9,11.53634142]
[1746339167144,5.413338,1847.3,1846.9,10.91225787]
[1746339167440,0.50583841,1847.2,1846.9,10.91225787]
[1746339167805,0.50583841,1847.1,1846.9,10.91225787]
[1746339168239,5.413338,1847.3,1846.9,10.91225787]
[1746339168943,0.50582534,1847.2,1846.9,10.91225787]
[1746339169510,0.50582534,1847.1,1846.9,10.91225787]
[1746339170347,5.413338,1847.3,1846.9,10.91225787]
[1746339170864,0.50591621,1847.2,1847.0,4.521]
[1746339171355,5.413338,1847.3,1847.0,4.521]
[1746339171356,0.50591621,1847.1,1847.0,4.521]
[1746339174562,0.50591621,1847.1,1847.0,4.66662644]
[1746339187171,1.33861621,1847.1,1847.0,4.66662644]
[1746339187669,0.50591621,1847.1,1847.0,4.66662644]
[1746339189470,0.50591621,1847.1,1847.0,14.01803851]
[1746339189675,0.50591621,1847.1,1847.0,13.96390296]
[1746339191790,0.8327,1847.7,1847.3,5.41305495]
[1746339192155,0.8327,1847.7,1847.4,0.14299614]
[1746339192343,0.50753802,1847.6,1847.4,5.55592717]
[1746339192668,0.50753802,1847.6,1847.5,0.14246539]
[1746339192850,0.8327,1847.7,1847.3,10.82629542]
[1746339193052,0.50752386,1847.6,1847.4,0.14299614]
[1746339193279,0.50752386,1847.6,1847.3,11.90883367]
[1746339193439,0.50752386,1847.6,1847.5,0.14246539]
[1746339193642,0.50752386,1847.6,1847.3,6.49569866]
[1746339193840,0.50752386,1847.6,1847.4,0.14299614]
[1746339194041,0.50752386,1847.6,1847.3,6.49569866]
[1746339194345,0.50752386,1847.5,1847.4,0.14299614]
[1746339194569,0.50752386,1847.5,1847.3,6.49569866]
[1746339194838,0.8327,1847.7,1847.4,0.79256601]
[1746339195583,0.50730814,1847.6,1847.4,0.79256601]
[1746339196176,0.50730814,1847.5,1847.4,0.79256601]
[1746339200980,1.33330814,1847.5,1847.4,0.79256601]
[1746339201751,1.33330814,1847.5,1847.4,0.14299614]
[1746339202049,1.33330814,1847.5,1847.4,0.14203901]
[1746339202251,6.74605628,1847.5,1847.1,5.41374893]
[1746339202577,6.74605628,1847.5,1847.2,0.14310068]
[1746339202783,0.50730814,1847.4,1847.2,0.14310068]
[1746339203168,0.50730814,1847.3,1847.2,0.14310068]
[1746339203574,0.50730814,1847.3,1847.2,5.55669964]
[1746339204280,0.50730814,1847.3,1847.2,0.14310068]
[1746339205056,0.50730814,1847.3,1847.2,5.55669964]
[1746339206094,0.50730814,1847.3,1847.2,7.69034339]
[1746339206267,0.50730814,1847.3,1847.2,8.50724339]
[1746339208216,0.50730814,1847.3,1847.2,0.69877064]
[1746339208430,0.50730814,1847.3,1847.2,5.55669964]
[1746339208928,0.50730814,1847.3,1847.2,5.61082947]
[1746339209427,0.50730814,1847.3,1847.2,5.61037492]
[1746339210790,0.50730814,1847.3,1847.2,6.37187492]
[1746339213023,0.50730814,1847.3,1847.2,10.88987492]
[1746339213193,0.50730814,1847.3,1847.2,12.52023151]
[1746339213394,0.50730814,1847.3,1847.2,12.46610168]
[1746339217439,0.50730814,1847.3,1847.2,4.66064613]
[1746339217617,6.69881404,1847.3,1847.2,0.14264613]
[1746339218019,6.69881404,1847.3,1847.0,8.12949391]
[1746339218020,5.41376937,1847.2,1847.0,8.12949391]
[1746339218223,5.92107751,1847.2,1847.0,8.12949391]
[1746339218416,0.50730814,1847.2,1847.0,8.12949391]
[1746339219006,0.50730814,1847.1,1847.0,8.12949391]
[1746339219710,0.50730814,1847.1,1847.0,8.27328086]
[1746339220740,6.68690018,1847.1,1847.0,3.75528086]
[1746339220914,7.3555902,1847.1,1847.0,3.75528086]
[1746339221533,7.3555902,1847.1,1847.0,0.14378695]
[1746339222154,6.18047149,1846.8,1846.7,23.12749391]
[1746339222442,6.68777963,1846.8,1846.7,23.12749391]
[1746339222636,6.68777963,1846.8,1846.7,3.61149391]
[1746339222809,7.89800905,1846.8,1846.7,3.61149391]
[1746339224845,2.48323756,1846.8,1846.7,3.61149391]
[1746339225011,2.48323756,1846.8,1846.6,4.518]
[1746339225348,0.50730814,1846.7,1846.6,4.518]
[1746339234559,0.50730814,1846.7,1846.6,4.65443212]
[1746339241535,5.41565123,1846.5,1846.0,5.2843]
[1746339241852,5.41635832,1846.3,1846.0,5.2843]
[1746339242626,5.41608263,1846.4,1846.0,10.70140292]
[1746339243234,5.41608263,1846.4,1846.0,10.70131125]
[1746339243574,5.41608263,1846.4,1846.0,14.42256671]
[1746339243773,0.7742,1846.6,1846.1,1.57797379]
[1746339243924,5.41522667,1846.7,1846.2,5.41631276]
[1746339244119,5.41546505,1846.6,1846.2,5.41631276]
[1746339244327,5.92114085,1846.6,1846.2,5.47047136]
[1746339244662,5.92114085,1846.6,1846.2,12.21006839]
[1746339244961,0.5056758,1846.5,1846.3,5.41623208]
[1746339245256,0.5056758,1846.5,1846.2,6.79380139]
[1746339245462,0.5056758,1846.4,1846.2,12.21016835]
[1746339245772,5.41522507,1846.7,1846.3,2.38877379]
[1746339245977,0.50593346,1846.6,1846.3,3.301604]
[1746339246576,0.50593346,1846.5,1846.3,3.301604]
[1746339246972,0.50593346,1846.4,1846.3,3.301604]
[1746339247158,0.50593346,1846.4,1846.3,8.71784188]
[1746339247987,6.18912009,1846.8,1846.3,8.71784188]
[1746339248145,5.4150968,1846.7,1846.4,4.518]
[1746339248347,5.4150968,1846.7,1846.4,5.84158419]
[1746339248663,5.92210097,1846.6,1846.4,5.84158419]
[1746339248863,5.92210097,1846.6,1846.4,4.518]
[1746339249183,5.41615856,1846.4,1846.1,4.518]
[1746339249680,0.50663859,1846.3,1846.1,4.518]
[1746339250250,0.50663859,1846.2,1846.1,9.93482465]
[1746339250451,0.50663859,1846.2,1846.1,11.59074131]
[1746339251493,0.50663859,1846.2,1846.1,4.518]
[1746339253404,0.50663859,1846.2,1846.1,5.2956]
[1746339253700,0.50663859,1846.2,1846.1,4.518]
[1746339256507,5.92316984,1846.2,1846.1,4.518]
[1746339257297,0.50663859,1846.2,1846.1,4.518]
[1746339257771,5.92316984,1846.2,1846.1,4.518]
[1746339257968,5.41887937,1845.4,1845.3,3.61149391]
[1746339258168,3.0,1845.2,1844.8,4.69494209]
[1746339258404,0.3,1845.2,1844.8,4.69494209]
[1746339258583,5.42017833,1845.0,1844.8,4.69494209]
[1746339258769,0.50663859,1845.1,1844.8,4.69494209]
[1746339259103,0.50663859,1845.1,1844.8,6.27291588]
[1746339259307,0.50663859,1845.1,1844.9,5.4201624]
[1746339259482,0.3062,1845.4,1845.0,5.96195254]
[1746339259665,0.50457616,1845.3,1845.1,5.41963289]
[1746339259868,0.50457616,1845.3,1845.2,0.05419303]
[1746339260064,0.50457616,1845.3,1845.1,5.41956838]
[1746339260401,5.41816174,1845.7,1845.2,5.41944761]
[1746339260567,5.41829625,1845.6,1845.1,5.41957694]
[1746339260898,0.50441009,1845.5,1845.2,5.96119685]
[1746339261066,0.50441009,1845.4,1845.2,0.54195769]
[1746339261267,0.50441009,1845.4,1845.2,5.96128583]
[1746339261468,6.24024726,1845.8,1845.2,5.96128583]
[1746339261679,0.8224,1845.8,1845.3,6.21057303]
[1746339262005,0.50425361,1845.7,1845.3,7.42775892]
[1746339262499,0.50425361,1845.6,1845.3,7.42775892]
[1746339262705,0.50425361,1845.6,1845.3,2.00858589]
[1746339262901,0.50425361,1845.6,1845.5,5.41858574]
[1746339263207,5.41742082,1845.9,1845.4,5.41871172]
[1746339263410,0.50407654,1845.8,1845.5,5.41855809]
[1746339263715,0.50407654,1845.8,1845.4,6.34354293]
[1746339263901,0.50407654,1845.7,1845.5,5.41835241]
[1746339264099,0.50407654,1845.7,1845.5,10.83669644]
[1746339264286,0.50407654,1845.6,1845.5,5.41834403]
[1746339264484,0.50407654,1845.6,1845.5,6.59453257]
[1746339264708,0.50407654,1845.9,1845.6,5.4181467]
[1746339264869,0.50407654,1845.9,1845.5,6.72178119]
[1746339265071,0.50407654,1845.9,1845.7,0.12588097]
[1746339265072,0.50407654,1845.8,1845.7,0.12588097]
[1746339265710,0.50407654,1845.8,1845.4,10.09363897]
[1746339265882,0.50407654,1845.8,1845.7,0.12588097]
[1746339266069,0.50407654,1845.8,1845.4,10.09363897]
[1746339266271,0.50407654,1845.8,1845.7,0.12588097]
[1746339266470,0.50407654,1845.8,1845.4,10.09363897]
[1746339267016,0.50407654,1845.7,1845.5,0.12715732]
[1746339267203,0.50407654,1845.7,1845.5,6.56776354]
[1746339267706,5.41743816,1845.9,1845.5,6.56776354]
[1746339268324,0.50421626,1845.8,1845.5,6.56776354]
[1746339268499,0.50421626,1845.8,1845.5,6.56759837]
[1746339268824,0.50421626,1845.7,1845.5,6.56771247]
[1746339269011,0.50421626,1845.7,1845.5,6.56761891]
[1746339269519,6.23969195,1846.0,1845.6,5.41829215]
[1746339269822,0.50428591,1845.9,1845.7,0.12588097]
[1746339269982,0.50428591,1845.9,1845.6,5.41829215]
[1746339270180,0.50428591,1845.9,1845.7,0.12588097]
[1746339270381,0.50428591,1845.8,1845.6,7.38124241]
[1746339270582,0.50428591,1845.8,1845.7,0.15529197]
[1746339270832,0.50428591,1845.8,1845.6,7.38124241]
[1746339271029,0.50428591,1845.8,1845.7,0.15529197]
[1746339271391,0.50428591,1845.8,1845.6,7.38124241]
[1746339271591,6.239645,1846.0,1845.7,0.15529197]
[1746339271792,6.239645,1846.0,1845.6,6.19534847]
[1746339271991,0.50404168,1845.9,1845.7,0.15529197]
[1746339272213,0.50404168,1845.9,1845.6,6.19534847]
[1746339272391,0.50404168,1845.8,1845.7,0.15529197]
[1746339272925,0.50404168,1845.8,1845.6,6.91722106]
[1746339273309,0.50404168,1845.8,1845.7,0.15529197]
[1746339273527,6.23956255,1846.0,1845.6,6.91722106]
[1746339273836,0.50410844,1845.9,1845.7,0.15529197]
[1746339274336,0.50410844,1845.8,1845.6,6.91702607]
[1746339274551,0.50410844,1845.7,1845.6,6.91702607]
[1746339274907,0.50410844,1845.9,1845.6,6.91702607]
[1746339275342,0.50410844,1845.8,1845.6,6.91702607]
[1746339275744,0.50410844,1845.7,1845.6,6.91702607]
[1746339277247,6.23956255,1846.0,1845.6,6.91702607]
[1746339277575,0.50463093,1845.7,1845.6,6.19528326]
[1746339277718,0.8224,1846.0,1845.7,5.417917]
[1746339277917,6.23543196,1846.1,1845.7,5.417917]
[1746339278114,6.23536938,1846.1,1845.7,5.41775935]
[1746339278346,0.5048464,1846.0,1845.7,5.41775935]
[1746339278551,0.5048464,1846.0,1845.7,6.03725529]
[1746339279053,0.5048464,1845.9,1845.8,5.41770311]
[1746339279562,0.5048464,1845.9,1845.8,5.57106316]
[1746339280656,0.5048464,1845.9,1845.8,0.15336005]
[1746339281320,0.5048464,1845.9,1845.8,5.57106511]
[1746339281520,0.5048464,1845.9,1845.8,6.73190361]
[1746339281954,0.5048464,1845.9,1845.8,13.7655774]
[1746339282256,0.5048464,1845.9,1845.8,12.18760361]
[1746339282433,5.41639876,1846.3,1845.9,5.41719154]
[1746339282845,0.50568004,1846.2,1845.9,5.56903997]
[1746339283256,0.50568004,1846.1,1846.0,5.41695749]
[1746339284167,0.50568004,1846.1,1846.0,6.50037239]
[1746339284572,0.50568004,1846.1,1846.0,7.28107239]
[1746339285073,6.8335,1846.5,1846.2,5.41648889]
[1746339285256,6.8335,1846.5,1846.0,0.7807]
[1746339285460,0.50618122,1846.4,1846.0,6.25175339]
[1746339285664,0.50618122,1846.3,1846.1,5.41670396]
[1746339285970,0.50618122,1846.2,1846.1,5.41670396]
[1746339287979,0.50618122,1846.2,1846.0,6.19765954]
[1746339288342,0.50618122,1846.1,1846.0,6.19765954]
[1746339289680,0.50618122,1846.1,1846.0,6.25182268]
[1746339289979,0.50618122,1846.1,1846.0,7.57652782]
[1746339291090,0.50618122,1846.1,1846.0,7.52236468]
[1746339292453,0.50618122,1846.1,1846.0,7.57652778]
[1746339293856,0.50618122,1846.1,1846.0,7.52236468]
[1746339294289,0.50618122,1846.1,1846.0,7.57652793]
[1746339294797,6.22321492,1846.6,1846.2,5.4163298]
[1746339294981,0.8078,1846.6,1846.3,5.41618236]
[1746339295383,0.50652514,1846.5,1846.3,5.41618236]
[1746339295755,0.50652514,1846.4,1846.3,5.41618236]
[1746339296955,0.50652514,1846.4,1846.3,6.22718236]
[1746339297567,0.50652514,1846.4,1846.3,9.48718356]
[1746339297952,6.8478,1846.8,1846.5,5.41554644]
[1746339298363,0.50630781,1846.7,1846.5,5.41554644]
[1746339298566,0.50630781,1846.6,1846.5,5.41554644]
[1746339300006,0.50630781,1846.6,1846.5,7.85477056]
[1746339300308,0.50630781,1846.6,1846.5,9.18183954]
[1746339300804,6.19632883,1847.0,1846.6,5.4152072]
[1746339301101,0.5060853,1846.9,1846.6,5.4151515]
[1746339301301,0.5060853,1846.8,1846.6,5.41513836]
[1746339301492,0.5060853,1846.8,1846.7,5.41506471]
[1746339301674,0.7821,1847.0,1846.7,5.41506471]
[1746339302127,0.50594363,1846.9,1846.7,5.41506471]
[1746339302497,0.50594363,1846.8,1846.7,5.41506471]
[1746339304775,0.50594363,1846.8,1846.7,6.9930385]
[1746339305111,5.41320828,1847.4,1846.7,6.9930385]
[1746339305112,6.24120828,1847.4,1847.0,5.4141422]
[1746339305493,0.50547617,1847.3,1846.9,10.82857361]
[1746339305806,0.50547617,1847.3,1847.0,5.41411544]
[1746339306017,0.50547617,1847.2,1847.0,6.16481544]
[1746339306186,0.50547617,1847.2,1847.1,5.41389204]
[1746339306388,0.828,1847.4,1847.1,6.57176279]
[1746339306587,0.50547959,1847.3,1847.1,6.57176279]
[1746339306782,0.50547959,1847.3,1847.1,1.15787075]
[1746339307004,0.50547959,1847.2,1847.1,5.4137224]
[1746339308284,0.828,1847.6,1847.2,5.41342274]
[1746339308595,0.828,1847.6,1847.3,5.41330243]
[1746339308795,0.50512609,1847.5,1847.3,5.41330243]
[1746339308996,0.50512609,1847.5,1847.4,5.41301288]
[1746339309513,0.50512609,1847.5,1847.3,6.16389148]
[1746339309712,6.23999166,1847.8,1847.3,1.36708915]
[1746339309905,0.828,1847.8,1847.3,12.19328436]
[1746339310107,0.50489001,1847.7,1847.3,12.19328436]
[1746339310302,0.50489001,1847.7,1847.3,1.36708915]
[1746339310505,0.50489001,1847.6,1847.3,6.78011616]
[1746339311029,0.50489001,1847.6,1847.3,12.19322418]
[1746339311188,0.50489001,1847.5,1847.3,12.19322418]
[1746339311389,0.50489001,1847.5,1847.4,6.6323353]
[1746339311835,0.828,1848.0,1847.6,5.4123355]
[1746339312166,0.828,1847.7,1847.4,11.26520079]
[1746339312734,0.50454087,1847.6,1847.4,11.26520079]
[1746339313237,0.828,1847.7,1847.4,11.26520079]
[1746339314119,0.828,1847.8,1847.5,5.41259412]
[1746339314422,0.50400413,1847.7,1847.5,5.41259412]
[1746339314586,0.50400413,1847.7,1847.5,7.0803725]
[1746339314786,0.828,1847.8,1847.5,7.0803725]
[1746339315518,0.828,1847.8,1847.5,1.66777838]
[1746339315717,0.50389501,1847.7,1847.5,1.66777838]
[1746339316019,0.828,1847.8,1847.5,7.08047913]
[1746339317119,0.50381312,1847.7,1847.5,7.08047913]
[1746339317444,0.50381312,1847.7,1847.6,0.70804791]
[1746339317642,0.50381312,1847.7,1847.5,7.08047913]
[1746339317994,0.828,1847.8,1847.5,7.08047913]
[1746339319223,0.50373873,1847.7,1847.5,7.08047913]
[1746339319922,0.828,1847.8,1847.5,7.08047913]
[1746339320823,0.50387403,1847.7,1847.5,7.08047913]
[1746339321202,0.828,1847.8,1847.5,7.08047913]
[1746339322223,0.50398052,1847.7,1847.5,7.08047913]
[1746339322716,0.50398052,1847.6,1847.5,7.08047913]
[1746339323235,0.50398052,1847.7,1847.5,7.08047913]
[1746339323729,0.50398052,1847.6,1847.5,7.08047913]
[1746339326803,0.50398052,1847.6,1847.5,7.08049827]
[1746339327119,0.50398052,1847.6,1847.5,5.41271989]
[1746339330618,0.8184,1848.4,1847.6,3.7728]
[1746339330822,0.8184,1848.4,1848.1,5.41073034]
[1746339331129,6.22808691,1848.6,1848.2,5.41055824]
[1746339331329,6.22808691,1848.6,1848.3,0.54105582]
[1746339331546,6.22808691,1848.6,1848.2,5.41055824]
[1746339332546,0.8184,1848.6,1848.3,5.41032307]
[1746339332743,0.8184,1848.6,1848.3,5.41028566]
[1746339332949,0.8184,1848.6,1848.3,0.7728]
[1746339333532,6.22790423,1848.6,1848.3,0.7728]
[1746339333924,6.22790423,1848.6,1848.1,11.59437652]
[1746339333925,6.22807071,1848.6,1848.1,11.59437652]
[1746339334130,6.22807071,1848.6,1848.1,7.50075919]
[1746339334563,6.22807071,1848.6,1848.2,5.41053419]
[1746339334864,0.8184,1848.6,1848.1,7.50084268]
[1746339335051,6.22792922,1848.6,1848.2,5.41050566]
[1746339335865,0.8184,1848.7,1848.2,1.57797379]
[1746339336032,0.8184,1848.7,1848.3,5.41019552]
[1746339336232,6.22771506,1848.7,1848.3,5.41019552]
[1746339336432,6.22771506,1848.7,1848.3,5.41033927]
[1746339338572,0.8184,1848.7,1848.4,5.46412223]
[1746339339671,0.8184,1848.7,1848.5,5.40961231]
[1746339339834,6.22710133,1848.9,1848.5,5.40961231]
[1746339341135,6.22710133,1848.9,1848.4,6.18276199]
[1746339341347,5.40895755,1848.8,1848.4,7.26193819]
[1746339342152,6.22719583,1848.9,1848.4,7.26193819]
[1746339342872,0.50442023,1848.8,1848.5,5.40974501]
[1746339343276,0.50442023,1848.7,1848.5,5.40974501]
[1746339343515,0.8184,1848.1,1847.5,0.7728]
[1746339343639,0.8184,1848.1,1847.6,4.608]
[1746339343840,0.50442023,1848.0,1847.7,0.4608]
[1746339344539,0.50442023,1847.9,1847.7,0.4608]
[1746339345062,5.4112719,1848.0,1847.7,0.4608]
[1746339345252,6.22954046,1848.1,1847.7,0.4608]
[1746339345552,5.41128766,1848.0,1847.7,0.4608]
[1746339345874,0.50464123,1847.9,1847.7,0.4608]
[1746339346483,0.50464123,1847.8,1847.7,0.4608]
[1746339347079,0.50464123,1847.8,1847.7,5.872934]
[1746339347254,0.50464123,1848.0,1847.7,5.92704748]
[1746339347457,0.50464123,1848.0,1847.8,0.59270475]
[1746339347784,5.41087492,1848.2,1847.8,1.39180475]
[1746339348083,0.50470794,1848.1,1847.8,1.39180475]
[1746339348655,5.91576817,1848.1,1847.8,1.39180475]
[1746339348859,5.91576817,1848.1,1847.8,0.7991]
[1746339349056,0.50470794,1848.0,1847.6,10.02030372]
[1746339349253,6.66812523,1848.0,1847.6,4.608]
[1746339349581,0.50470794,1847.9,1847.6,10.0204044]
[1746339349786,0.50470794,1847.9,1847.6,11.64360426]
[1746339349983,0.50470794,1847.8,1847.6,11.64360426]
[1746339350574,0.50470794,1847.9,1847.6,11.64360426]
[1746339350775,0.50470794,1847.8,1847.6,11.64360426]
[1746339351354,0.50470794,1847.9,1847.6,11.64360426]
[1746339351585,0.50470794,1847.9,1847.7,1.16436043]
[1746339351787,0.50470794,1847.8,1847.7,1.16436043]
[1746339352314,0.50470794,1847.9,1847.7,1.16436043]
[1746339352591,0.49323456,1847.9,1847.7,1.16436043]
[1746339352787,6.16341729,1848.0,1847.7,1.16436043]
[1746339356090,0.752,1848.0,1847.7,1.16436043]
[1746339356296,6.16326909,1848.0,1847.7,1.16436043]
[1746339356499,0.752,1848.0,1847.7,6.57641923]
[1746339357089,5.41096984,1848.1,1847.7,6.63053242]
[1746339357493,5.41096984,1848.1,1847.8,1.48335324]
[1746339358292,5.41096984,1848.1,1847.7,6.57641923]
[1746339358606,10.82217466,1848.1,1847.7,6.57647874]
[1746339358813,10.82217466,1848.1,1847.6,7.00627379]
[1746339358814,5.41146616,1848.0,1847.6,10.84067582]
[1746339359012,0.82,1847.9,1847.6,10.02037582]
[1746339359182,6.23155505,1847.9,1847.6,4.608]
[1746339359381,6.23155505,1847.9,1847.6,5.61005654]
[1746339361206,0.82,1847.9,1847.6,5.61005654]
[1746339361415,6.23155628,1847.9,1847.6,5.61005654]
[1746339361711,0.82,1847.9,1847.6,5.61005654]
[1746339362501,5.41205788,1847.8,1847.6,4.608]
[1746339362810,6.23173651,1847.9,1847.6,4.608]
[1746339363109,5.41194635,1847.8,1847.6,4.608]
[1746339364601,0.50558581,1847.7,1847.6,4.608]
[1746339364803,0.50558581,1847.7,1847.4,10.79693731]
[1746339365002,0.50558581,1847.7,1847.4,12.63738223]
[1746339365218,0.50558581,1847.7,1847.4,7.22454492]
[1746339365430,0.50558581,1847.6,1847.4,12.63750904]
[1746339365596,5.41194635,1847.8,1847.4,12.63750904]
[1746339366126,0.50555824,1847.7,1847.4,12.63750904]
[1746339366333,0.50555824,1847.7,1847.5,1.2637509]
[1746339366540,0.50555824,1847.6,1847.5,1.2637509]
[1746339368229,1.25675824,1847.6,1847.4,4.603]
[1746339368534,0.50555824,1847.5,1847.4,4.603]
[1746339374607,0.50555824,1847.5,1847.4,12.39368667]
[1746339374807,0.50555824,1847.5,1847.4,6.98067379]
[1746339377630,0.50555824,1847.5,1847.4,5.4027]
[1746339377835,0.50555824,1847.5,1847.4,5.68457932]
[1746339379846,0.50555824,1847.5,1847.4,4.603]
[1746339379998,6.73347813,1847.5,1847.4,4.603]
[1746339381738,5.41338013,1847.3,1847.1,4.603]
[1746339382110,0.50555824,1847.2,1847.1,4.603]
[1746339387330,0.50555824,1847.2,1847.1,10.77709204]
[1746339387645,0.50555824,1847.2,1847.1,12.5594304]
[1746339389425,0.50555824,1847.2,1847.1,7.14553836]
[1746339391120,0.50555824,1847.2,1847.1,4.603]
[1746339393355,5.41412015,1847.1,1846.7,0.8127]